bitfinex/quotes_BTCUSD_20250213
["timestamp","ask_amount","ask_price","bid_price","bid_amount"]
[1739452363800,0.00565457,95933.0,95932.0,0.0896]
[1739452364006,0.156357,95934.0,95932.0,0.0896]
[1739452364225,0.00565457,95933.0,95932.0,0.0896]
[1739452364674,0.00565457,95933.0,95932.0,0.0836]
[1739452364892,0.00565457,95933.0,95932.0,0.0826]
[1739452365109,0.16201357,95933.0,95932.0,0.0826]
[1739452365973,0.16151357,95933.0,95932.0,0.0826]
[1739452366227,0.16151357,95933.0,95932.0,0.0836]
[1739452366228,0.00515457,95933.0,95932.0,0.0836]
[1739452366478,0.00515457,95933.0,95932.0,0.0896]
[1739452366726,0.156356,95935.0,95932.0,0.0836]
[1739452366997,0.0056268,95933.0,95932.0,0.0896]
[1739452367243,0.156357,95934.0,95932.0,0.0766]
[1739452367482,0.0056268,95933.0,95932.0,0.0766]
[1739452367721,0.0056268,95933.0,95932.0,0.0896]
[1739452367929,0.156356,95935.0,95932.0,0.0836]
[1739452368134,0.0056268,95933.0,95932.0,0.0766]
[1739452368382,0.20282021,95937.0,95932.0,0.0766]
[1739452368583,0.0056268,95933.0,95932.0,0.0766]
[1739452368823,0.156356,95935.0,95932.0,0.0766]
[1739452369054,0.0056268,95933.0,95932.0,0.0766]
[1739452369321,0.156356,95935.0,95932.0,0.0836]
[1739452369593,0.0056268,95933.0,95932.0,0.0906]
[1739452369844,0.01507702,95938.0,95932.0,0.09082386]
[1739452370091,0.0056268,95933.0,95932.0,0.24018386]
[1739452370313,0.17059481,95947.0,95938.0,0.156349]
[1739452370521,0.156342,95944.0,95939.0,0.0766]
[1739452370764,0.156342,95943.0,95939.0,0.0766]
[1739452370975,0.15,95943.0,95939.0,0.0766]
[1739452371224,0.0056268,95942.0,95941.0,0.156346]
[1739452371473,0.0056268,95942.0,95941.0,0.232946]
[1739452371716,0.02083271,95950.0,95941.0,0.0766]
[1739452371904,0.00562968,95942.0,95941.0,0.0766]
[1739452372181,0.156343,95943.0,95941.0,0.0766]
[1739452372399,0.00562968,95942.0,95941.0,0.0766]
[1739452373083,0.00562968,95942.0,95941.0,0.0826]
[1739452373333,0.156342,95943.0,95941.0,0.0826]
[1739452373555,0.00562968,95942.0,95941.0,0.0896]
[1739452373751,0.156342,95944.0,95941.0,0.0896]
[1739452373984,0.00562968,95942.0,95941.0,0.0896]
[1739452374233,0.156342,95944.0,95941.0,0.0826]
[1739452374484,0.00562968,95942.0,95941.0,0.232945]
[1739452374728,0.156339,95945.0,95941.0,0.0766]
[1739452374944,0.00562968,95942.0,95941.0,0.0766]
[1739452375167,0.156339,95945.0,95941.0,0.0766]
[1739452375358,0.00562968,95942.0,95941.0,0.0766]
[1739452375570,0.156339,95945.0,95941.0,0.0766]
[1739452375779,0.00562968,95942.0,95941.0,0.0896]
[1739452375975,0.156339,95945.0,95941.0,0.0836]
[1739452376203,0.00562968,95942.0,95941.0,0.0766]
[1739452376411,0.156337,95947.0,95941.0,0.0886]
[1739452376588,0.156337,95947.0,95941.0,0.244944]
[1739452376788,0.156338,95946.0,95941.0,0.244944]
[1739452376996,0.156342,95944.0,95941.0,0.0936]
[1739452377261,0.156342,95944.0,95941.0,0.0766]
[1739452377466,0.156342,95944.0,95941.0,0.0836]
[1739452377642,0.156342,95944.0,95941.0,0.0886]
[1739452378090,0.15634,95945.0,95941.0,0.0886]
[1739452378266,0.156335,95948.0,95943.0,0.156342]
[1739452378692,0.10250365,95950.0,95946.0,0.156337]
[1739452378901,0.156333,95949.0,95941.0,0.0886]
[1739452379100,0.10250365,95950.0,95942.0,0.208459]
[1739452379309,0.208448,95948.0,95941.0,0.232944]
[1739452379511,0.156339,95946.0,95941.0,0.232944]
[1739452379741,0.156339,95946.0,95941.0,0.238944]
[1739452379947,0.156339,95946.0,95941.0,0.232944]
[1739452380155,0.208448,95948.0,95941.0,0.0806]
[1739452380363,0.156339,95945.0,95941.0,0.0876]
[1739452380568,0.156339,95945.0,95941.0,0.0836]
[1739452380788,0.01570924,95960.0,95945.0,0.0766]
[1739452381010,0.11821289,95960.0,95953.0,0.0766]
[1739452381220,0.10250365,95959.0,95943.0,0.0766]
[1739452381445,0.156344,95942.0,95941.0,0.011]
[1739452381877,0.25884765,95942.0,95941.0,0.011]
[1739452382096,0.25884765,95942.0,95941.0,0.006]
[1739452382097,0.40884765,95942.0,95941.0,0.006]
[1739452382339,0.15,95941.0,95930.0,0.00013228]
[1739452382547,0.156359,95933.0,95930.0,0.00013228]
[1739452382757,0.25886265,95933.0,95930.0,0.00013228]
[1739452383633,0.40886265,95933.0,95930.0,0.00013228]
[1739452384482,0.40886265,95933.0,95932.0,0.00322386]
[1739452385342,0.40886265,95933.0,95932.0,0.00522386]
[1739452385548,0.47149265,95933.0,95932.0,0.00022386]
[1739452385925,0.52039265,95933.0,95932.0,0.00022386]
[1739452386766,0.45776265,95933.0,95932.0,0.00022386]
[1739452388332,0.41449715,95933.0,95932.0,0.00022386]
[1739452389167,0.4348703,95933.0,95932.0,0.00022386]
[1739452394217,0.15,95917.0,95905.0,0.0814]
[1739452394432,0.156401,95907.0,95905.0,0.0814]
[1739452394666,0.40890465,95907.0,95906.0,0.00028824]
[1739452395066,0.42908016,95907.0,95906.0,0.00028824]
[1739452396144,0.42908016,95907.0,95906.0,0.00128824]
[1739452396388,0.42908016,95907.0,95906.0,0.00028824]
[1739452396568,0.42908016,95907.0,95906.0,0.00228824]
[1739452396819,0.42908016,95907.0,95906.0,0.00328824]
[1739452397031,0.42908016,95907.0,95906.0,0.00028824]
[1739452397232,0.42908016,95907.0,95906.0,0.00528824]
[1739452398427,0.42908016,95907.0,95906.0,0.00428824]
[1739452398782,0.42908016,95907.0,95906.0,0.00128824]
[1739452398974,0.42908016,95907.0,95906.0,0.00228824]
[1739452399356,0.42908016,95907.0,95906.0,0.00128824]
[1739452399531,0.42908016,95907.0,95906.0,0.00228824]
[1739452399734,0.42908016,95907.0,95906.0,0.00128824]
[1739452400317,0.156412,95900.0,95899.0,0.0814]
[1739452400503,0.25891565,95900.0,95899.0,0.08144402]
[1739452400868,0.26452891,95900.0,95899.0,0.08144402]
[1739452402288,0.26452891,95900.0,95899.0,0.08344402]
[1739452402522,0.26452891,95900.0,95899.0,0.08144402]
[1739452402758,0.26452891,95900.0,95899.0,0.08444402]
[1739452403104,0.26452891,95900.0,95899.0,0.08144402]
[1739452403311,0.26452891,95900.0,95899.0,0.08744402]
[1739452404221,0.26452891,95900.0,95899.0,0.00604402]
[1739452404625,0.26452891,95900.0,95899.0,0.00404402]
[1739452404848,0.26452891,95900.0,95899.0,4.402e-05]
[1739452405039,0.26452891,95900.0,95899.0,0.00304402]
[1739452405238,0.26452891,95900.0,95899.0,0.00404402]
[1739452405644,0.26452891,95900.0,95899.0,0.00204402]
[1739452405872,0.26452891,95900.0,95899.0,4.402e-05]
[1739452406074,0.26452891,95900.0,95899.0,0.00204402]
[1739452406287,0.26452891,95900.0,95899.0,0.00404402]
[1739452406494,0.26452891,95900.0,95899.0,0.00204402]
[1739452406673,0.26452891,95900.0,95899.0,4.402e-05]
[1739452406881,0.26452891,95900.0,95899.0,0.00304402]
[1739452407656,0.26452891,95900.0,95899.0,0.00326767]
[1739452408644,0.26452891,95900.0,95899.0,0.00226767]
[1739452408830,0.26452891,95900.0,95899.0,0.00426767]
[1739452408969,0.26452891,95900.0,95899.0,0.00226767]
[1739452409363,0.26452891,95900.0,95899.0,0.00326767]
[1739452409770,0.26452891,95900.0,95899.0,0.00726767]
[1739452410170,0.15714633,95899.0,95898.0,0.00022365]
[1739452410376,0.15714633,95899.0,95898.0,0.00028789]
[1739452410576,0.16273984,95899.0,95898.0,0.00028789]
[1739452412603,0.16273984,95899.0,95898.0,0.00428789]
[1739452412958,0.16273984,95899.0,95898.0,0.00328789]
[1739452413156,0.16273984,95899.0,95898.0,0.00728789]
[1739452413396,0.16273984,95899.0,95898.0,0.00428789]
[1739452413625,0.16273984,95899.0,95898.0,0.00728789]
[1739452413846,0.16273984,95899.0,95898.0,0.00328789]
[1739452414178,0.16273984,95899.0,95898.0,0.00628789]
[1739452415265,0.16273984,95899.0,95898.0,0.00328789]
[1739452416098,0.16273984,95899.0,95898.0,0.00428789]
[1739452416313,0.16273984,95899.0,95898.0,0.00628789]
[1739452416519,0.20855,95901.0,95898.0,0.00628789]
[1739452416751,0.16169676,95899.0,95898.0,0.00428789]
[1739452416957,0.156414,95899.0,95898.0,0.00428789]
[1739452417381,0.16169676,95899.0,95898.0,0.00028789]
[1739452417811,0.16169676,95899.0,95898.0,0.00128789]
[1739452418571,0.16169676,95899.0,95898.0,0.00528789]
[1739452418981,0.16169676,95899.0,95898.0,0.00128789]
[1739452419411,0.16169676,95899.0,95898.0,0.00228789]
[1739452419610,0.16169676,95899.0,95898.0,0.00428789]
[1739452419811,0.16169676,95899.0,95898.0,0.00328789]
[1739452420012,0.16180326,95899.0,95898.0,0.00328789]
[1739452420221,0.16180326,95899.0,95898.0,0.00228789]
[1739452420570,0.16180326,95899.0,95898.0,0.00428789]
[1739452420770,0.16180326,95899.0,95898.0,0.00228789]
[1739452421210,0.16180326,95899.0,95898.0,0.00428789]
[1739452421645,0.16180326,95899.0,95898.0,0.00228789]
[1739452421819,0.16180326,95899.0,95898.0,0.00428789]
[1739452422427,0.16180326,95899.0,95898.0,0.00028789]
[1739452422633,0.16180326,95899.0,95898.0,0.00128789]
[1739452422817,0.16180326,95899.0,95898.0,0.00328789]
[1739452423434,0.16180326,95899.0,95898.0,0.00528789]
[1739452424275,0.16180326,95899.0,95898.0,0.00128789]
[1739452424603,0.16180326,95899.0,95898.0,0.00028789]
[1739452425083,0.16180326,95899.0,95898.0,0.00228789]
[1739452425420,0.16180326,95899.0,95898.0,0.00028789]
[1739452425623,0.16180326,95899.0,95898.0,0.00628789]
[1739452425874,0.16180326,95899.0,95898.0,0.00428789]
[1739452426070,0.003,95898.0,95894.0,0.08322194]
[1739452426271,0.003,95898.0,95892.0,0.0458]
[1739452426486,0.003,95898.0,95893.0,0.164184]
[1739452426717,0.003,95898.0,95892.0,0.0458]
[1739452426884,0.00528597,95897.0,95893.0,0.00776]
[1739452427091,0.00528597,95897.0,95896.0,0.156419]
[1739452427323,0.00528597,95897.0,95895.0,0.15642]
[1739452427468,0.003,95898.0,95895.0,0.15642]
[1739452427787,0.003,95898.0,95894.0,0.156422]
[1739452428066,0.00528597,95897.0,95894.0,0.005]
[1739452428383,0.00528597,95897.0,95892.0,0.0508]
[1739452428937,0.00528597,95897.0,95895.0,0.007]
[1739452429151,0.00528597,95897.0,95896.0,0.0773]
[1739452429528,0.00628597,95897.0,95896.0,0.0773]
[1739452430840,0.00528597,95897.0,95896.0,0.0833]
[1739452431044,0.00528597,95897.0,95896.0,0.0903]
[1739452431627,0.00528597,95897.0,95896.0,0.0833]
[1739452431862,0.00528597,95897.0,95896.0,0.0903]
[1739452432107,0.00528597,95897.0,95896.0,0.246719]
[1739452432481,0.0031065,95898.0,95897.0,0.233717]
[1739452432664,0.0031065,95898.0,95897.0,0.283517]
[1739452433512,0.0031065,95898.0,95897.0,0.290517]
[1739452434516,0.0031065,95898.0,95897.0,0.297517]
[1739452436519,0.0031065,95898.0,95897.0,0.290517]
[1739452436727,0.0031065,95898.0,95897.0,0.297517]
[1739452437361,0.0031065,95898.0,95897.0,0.290517]
[1739452437582,0.0031065,95898.0,95897.0,0.297517]
[1739452441093,0.0031065,95898.0,95897.0,0.287517]
[1739452441471,0.0031065,95898.0,95897.0,0.294517]
[1739452441677,0.0031065,95898.0,95897.0,0.1411]
[1739452441892,0.00301176,95906.0,95897.0,0.1271]
[1739452441893,0.14248065,95903.0,95897.0,0.1271]
[1739452442114,0.0052999,95902.0,95897.0,0.1341]
[1739452442315,0.0052999,95902.0,95897.0,0.297517]
[1739452442527,0.156408,95903.0,95897.0,0.1411]
[1739452442728,0.0052999,95901.0,95897.0,0.1481]
[1739452442936,0.156408,95903.0,95897.0,0.1481]
[1739452443138,0.0052999,95900.0,95897.0,0.1341]
[1739452443344,0.0052999,95900.0,95897.0,0.1271]
[1739452443558,0.0052999,95899.0,95897.0,0.1341]
[1739452443758,0.0064356,95898.0,95897.0,0.1341]
[1739452444020,0.1775675,95906.0,95897.0,0.1341]
[1739452444238,0.1775675,95906.0,95897.0,0.1271]
[1739452444570,0.0064356,95905.0,95897.0,0.1341]
[1739452444771,0.1628406,95905.0,95899.0,0.156414]
[1739452444977,0.0064356,95905.0,95899.0,0.156414]
[1739452445190,0.0064356,95905.0,95902.0,0.156408]
[1739452445370,0.01456225,95907.0,95902.0,0.156408]
[1739452445620,0.0064356,95904.0,95903.0,0.233708]
[1739452445841,0.156391,95913.0,95906.0,0.156402]
[1739452446454,0.02117815,95915.0,95904.0,0.208541]
[1739452446455,0.156395,95911.0,95904.0,0.208541]
[1739452446646,0.156398,95909.0,95903.0,0.0773]
[1739452447019,0.156398,95909.0,95903.0,0.240707]
[1739452447225,0.156396,95911.0,95905.0,0.0773]
[1739452447433,0.156396,95911.0,95905.0,0.233704]
[1739452447633,0.14630746,95911.0,95905.0,0.233704]
[1739452448664,0.14630746,95911.0,95905.0,0.239704]
[1739452449108,0.00013218,95915.0,95906.0,0.005]
[1739452449268,0.01419666,95915.0,95908.0,0.0755]
[1739452449485,0.00013218,95915.0,95908.0,0.0755]
[1739452449891,0.00013218,95915.0,95914.0,0.15639]
[1739452450092,0.00013218,95915.0,95914.0,0.23189]
[1739452450761,0.15652018,95915.0,95914.0,0.0755]
[1739452451249,0.176517,95915.0,95914.0,0.0815]
[1739452451873,0.020129,95915.0,95914.0,0.0815]
[1739452452437,0.020129,95915.0,95914.0,0.0875]
[1739452453073,0.01369833,95915.0,95914.0,0.24389]
[1739452453912,0.01369833,95915.0,95914.0,0.0875]
[1739452454285,0.020129,95915.0,95914.0,0.0875]
[1739452456525,0.0202355,95915.0,95914.0,0.0875]
[1739452457381,0.0202355,95915.0,95914.0,0.24389]
[1739452457582,0.0202355,95915.0,95914.0,0.0875]
[1739452459084,0.0202355,95915.0,95914.0,0.24389]
[1739452459665,0.0202355,95915.0,95914.0,0.23789]
[1739452460000,0.0202355,95915.0,95914.0,0.0825]
[1739452460294,0.0202355,95915.0,95914.0,0.0895]
[1739452460691,0.0202355,95915.0,95914.0,0.0825]
[1739452461067,0.0202355,95915.0,95914.0,0.0895]
[1739452461473,0.0202355,95915.0,95914.0,0.0825]
[1739452461896,0.0202355,95915.0,95914.0,0.0895]
[1739452462321,0.0202355,95915.0,95914.0,0.0825]
[1739452462522,0.0202355,95915.0,95914.0,0.0895]
[1739452463921,0.0202355,95915.0,95914.0,0.24589]
[1739452464122,0.00666935,95915.0,95914.0,0.24589]
[1739452464304,0.00023868,95915.0,95914.0,0.29449]
[1739452465369,0.00023868,95915.0,95914.0,0.28049]
[1739452465526,0.00023868,95915.0,95914.0,0.28749]
[1739452465729,0.00023868,95915.0,95914.0,0.29449]
[1739452465933,0.00023868,95915.0,95914.0,0.28749]
[1739452466137,0.00023868,95915.0,95914.0,0.28049]
[1739452466338,0.00023868,95915.0,95914.0,0.29449]
[1739452470731,0.00668437,95915.0,95914.0,0.29449]
[1739452470937,0.00023868,95915.0,95914.0,0.29449]
[1739452471158,0.00668437,95915.0,95914.0,0.29449]
[1739452471286,0.00023868,95915.0,95914.0,0.29449]
[1739452471497,0.00023868,95915.0,95914.0,0.28749]
[1739452471931,0.00023868,95915.0,95914.0,0.1381]
[1739452472356,0.00023868,95915.0,95914.0,0.1241]
[1739452472560,0.00023868,95915.0,95914.0,0.1311]
[1739452472842,0.00023868,95915.0,95914.0,0.1381]
[1739452473061,0.00670052,95915.0,95914.0,0.1311]
[1739452473640,0.00670052,95915.0,95914.0,0.1381]
[1739452474425,0.16308852,95915.0,95914.0,0.1381]
[1739452474634,0.16308852,95915.0,95914.0,0.014]
[1739452475405,0.16308852,95915.0,95914.0,0.007]
[1739452475605,0.16308852,95915.0,95914.0,0.013]
[1739452475783,0.16308852,95915.0,95914.0,0.006]
[1739452476197,0.156392,95913.0,95911.0,0.00022365]
[1739452476706,0.00646184,95912.0,95911.0,0.00022365]
[1739452477897,0.00646184,95912.0,95911.0,0.00722365]
[1739452478998,0.00646184,95912.0,95911.0,0.01422365]
[1739452479994,0.00646184,95912.0,95911.0,0.00722365]
[1739452480587,0.00646184,95912.0,95911.0,0.01222365]
[1739452481454,0.20875668,95915.0,95911.0,0.01222365]
[1739452481634,0.00646184,95912.0,95911.0,0.01222365]
[1739452481847,0.00646184,95912.0,95911.0,0.00722365]
[1739452482049,0.156391,95913.0,95911.0,0.00722365]
[1739452482258,0.00646184,95912.0,95911.0,0.00722365]
[1739452482473,0.00646184,95912.0,95911.0,0.00022365]
[1739452482683,0.00646184,95912.0,95911.0,0.00622365]
[1739452483037,0.00646184,95912.0,95911.0,0.01322365]
[1739452483641,0.15662668,95915.0,95911.0,0.16961765]
[1739452483843,0.15662668,95915.0,95911.0,0.16361765]
[1739452484251,0.00646184,95914.0,95911.0,0.16361765]
[1739452484619,0.00646184,95914.0,95911.0,0.00722365]
[1739452484899,0.00646184,95914.0,95912.0,0.156393]
[1739452485843,0.00646184,95914.0,95911.0,0.00722365]
[1739452486040,0.00646184,95914.0,95911.0,0.16361665]
[1739452486223,0.00646184,95914.0,95911.0,0.16961665]
[1739452486828,0.00646184,95914.0,95912.0,0.156393]
[1739452487233,0.00646184,95914.0,95912.0,0.007]
[1739452487436,0.00646184,95914.0,95912.0,0.163392]
[1739452487651,0.00646184,95914.0,95912.0,0.170392]
[1739452489345,0.00646184,95914.0,95912.0,0.014]
[1739452490808,0.00646184,95914.0,95912.0,0.170393]
[1739452491238,0.00646184,95914.0,95913.0,0.156391]
[1739452491633,0.00023868,95915.0,95914.0,0.15639]
[1739452492009,0.00669266,95915.0,95914.0,0.28419]
[1739452492214,0.00023868,95915.0,95914.0,0.28419]
[1739452493036,0.00669671,95915.0,95914.0,0.28419]
[1739452493392,0.00023868,95915.0,95914.0,0.28419]
[1739452493599,0.00023868,95915.0,95914.0,0.1348]
[1739452493811,0.00023868,95915.0,95914.0,0.0885]
[1739452494225,0.00669671,95915.0,95914.0,0.0815]
[1739452494466,8.096e-05,95915.0,95914.0,0.0885]
[1739452494705,0.00653899,95915.0,95914.0,0.0955]
[1739452494953,0.16292699,95915.0,95914.0,0.0885]
[1739452495861,0.16292699,95915.0,95914.0,0.007]
[1739452496143,0.16292699,95915.0,95914.0,0.014]
[1739452496347,0.16292699,95915.0,95914.0,0.007]
[1739452496555,0.156393,95912.0,95911.0,0.00022365]
[1739452497376,0.16285103,95912.0,95911.0,0.00022365]
[1739452497723,0.16285103,95912.0,95911.0,0.00722365]
[1739452498140,0.16285103,95912.0,95911.0,0.01422365]
[1739452499157,0.16285103,95912.0,95911.0,0.00722365]
[1739452499489,0.16285103,95912.0,95911.0,0.00022365]
[1739452499672,0.16285103,95912.0,95911.0,0.00822365]
[1739452499849,0.16285103,95912.0,95911.0,0.00422365]
[1739452500067,0.156393,95912.0,95911.0,0.00422365]
[1739452500281,0.16283351,95912.0,95911.0,0.00422365]
[1739452500489,0.16283351,95912.0,95911.0,0.00822365]
[1739452500490,0.41533716,95912.0,95911.0,0.00822365]
[1739452500688,0.45853716,95912.0,95911.0,0.00822365]
[1739452500901,0.306416,95898.0,95897.0,0.00022365]
[1739452501104,0.4585562,95898.0,95897.0,0.00022365]
[1739452501714,0.5269562,95898.0,95897.0,0.00022365]
[1739452502120,0.406427,95891.0,95882.0,0.00022365]
[1739452502325,0.53833743,95891.0,95882.0,0.00022365]
[1739452502955,0.429429,95890.0,95889.0,3e-07]
[1739452503167,0.406455,95874.0,95873.0,0.0933446]
[1739452503369,0.50895865,95874.0,95873.0,0.0933446]
[1739452503574,0.15,95873.0,95848.0,0.0463]
[1739452503831,0.40896165,95872.0,95854.0,0.00776]
[1739452503995,0.40896165,95872.0,95848.0,0.0463]
[1739452504208,0.41529013,95872.0,95846.0,0.0815]
[1739452504415,0.41537279,95872.0,95846.0,0.0815]
[1739452504618,0.48157279,95872.0,95843.0,0.0933446]
[1739452504828,0.50557318,95872.0,95871.0,0.00077635]
[1739452505859,0.156504,95844.0,95843.0,0.0933446]
[1739452506065,0.156504,95844.0,95843.0,0.0926446]
[1739452506066,0.1628244,95844.0,95843.0,0.0926446]
[1739452506275,0.1628244,95844.0,95843.0,0.0924446]
[1739452506680,0.17650836,95844.0,95843.0,0.0924446]
[1739452506880,0.156506,95843.0,95834.0,0.156519]
[1739452507089,0.16642567,95844.0,95835.0,0.156518]
[1739452507290,0.16010527,95844.0,95843.0,0.003]
[1739452507508,0.01368396,95844.0,95843.0,0.003]
[1739452507718,0.15,95845.0,95843.0,0.003]
[1739452507919,0.17088004,95851.0,95843.0,0.003]
[1739452508146,0.0063204,95844.0,95843.0,0.00344119]
[1739452508371,0.15,95849.0,95843.0,0.00344119]
[1739452508572,0.0063204,95844.0,95843.0,0.00344119]
[1739452508781,0.25250365,95849.0,95843.0,0.00044119]
[1739452508989,0.0063204,95844.0,95843.0,0.00044119]
[1739452509197,0.01345309,95845.0,95844.0,0.156504]
[1739452509399,0.02088004,95851.0,95844.0,0.0815]
[1739452509604,0.02088004,95851.0,95844.0,0.238003]
[1739452510101,0.02088004,95851.0,95844.0,0.0815]
[1739452510296,0.02088004,95851.0,95843.0,0.00144119]
[1739452510508,0.02088004,95851.0,95844.0,0.005]
[1739452510722,0.02088004,95851.0,95843.0,0.00044119]
[1739452510888,0.156503,95845.0,95843.0,0.00044119]
[1739452511096,0.156509,95842.0,95832.0,0.07741119]
[1739452511302,0.156512,95839.0,95832.0,0.07754337]
[1739452511498,0.35509831,95842.0,95832.0,0.07754337]
[1739452511699,0.10250365,95841.0,95832.0,0.00014337]
[1739452512037,0.208681,95840.0,95832.0,0.00014337]
[1739452512347,0.156522,95833.0,95832.0,0.00014337]
[1739452512630,0.20869,95836.0,95832.0,0.00314337]
[1739452512783,0.15652,95834.0,95832.0,0.00314337]
[1739452512993,0.10250365,95840.0,95832.0,0.00014337]
[1739452513169,0.156521,95834.0,95832.0,0.00414337]
[1739452513376,0.10250365,95840.0,95832.0,0.00414337]
[1739452513593,0.001,95833.0,95832.0,0.00714337]
[1739452513794,0.001,95833.0,95832.0,0.01214337]
[1739452514075,0.156519,95835.0,95832.0,0.00514337]
[1739452514723,0.15652,95834.0,95832.0,0.00514337]
[1739452514896,0.157522,95834.0,95832.0,0.01114337]
[1739452515100,0.156522,95833.0,95832.0,0.00614337]
[1739452515306,0.156522,95833.0,95832.0,0.01224997]
[1739452516130,0.156522,95833.0,95832.0,0.00624997]
[1739452516335,0.156522,95833.0,95832.0,0.00024997]
[1739452516550,0.156522,95833.0,95832.0,0.01224997]
[1739452517156,0.156522,95833.0,95832.0,0.00624997]
[1739452517355,0.10250365,95840.0,95832.0,0.00623878]
[1739452517558,0.10250365,95839.0,95832.0,0.01134997]
[1739452517756,0.156521,95834.0,95832.0,0.01134997]
[1739452517955,0.156522,95833.0,95832.0,0.01134997]
[1739452518364,0.156522,95833.0,95832.0,0.006]
[1739452518741,0.156522,95833.0,95832.0,0.01]
[1739452518965,0.156522,95833.0,95832.0,0.006]
[1739452519648,0.156523,95832.0,95831.0,0.0004]
[1739452519853,0.156523,95832.0,95831.0,0.00053244]
[1739452520838,0.50902665,95832.0,95831.0,0.00053244]
[1739452521062,0.20250365,95832.0,95831.0,0.00053244]
[1739452521270,0.38302704,95832.0,95831.0,0.00553244]
[1739452521874,0.156574,95801.0,95800.0,0.97938665]
[1739452522086,0.18611605,95801.0,95800.0,0.97943062]
[1739452522330,0.22068479,95801.0,95800.0,0.97943062]
[1739452522537,0.16661444,95801.0,95800.0,0.97943062]
[1739452522787,0.00624528,95801.0,95800.0,0.97943062]
[1739452522997,0.00624528,95801.0,95800.0,1.13600662]
[1739452523215,0.01295561,95813.0,95812.0,0.156556]
[1739452523418,0.14642131,95830.0,95802.0,0.00104367]
[1739452523621,0.01268835,95820.0,95818.0,0.156546]
[1739452523823,0.14642131,95830.0,95801.0,0.0774]
[1739452524030,0.1,95837.0,95819.0,0.0488]
[1739452524197,0.00621699,95829.0,95828.0,0.15653]
[1739452524400,0.1,95865.0,95828.0,0.15653]
[1739452524401,0.15649,95853.0,95847.0,0.0774]
[1739452524606,0.02105471,95856.0,95847.0,0.0774]
[1739452524806,0.00573517,95852.0,95847.0,0.0774]
[1739452525004,0.156497,95848.0,95847.0,0.0774]
[1739452525218,0.156497,95848.0,95809.0,0.2256]
[1739452525219,0.13256042,95848.0,95820.0,0.0774]
[1739452525413,0.156533,95826.0,95824.0,0.08322194]
[1739452525612,0.208676,95842.0,95824.0,0.08322194]
[1739452525817,0.156527,95830.0,95820.0,0.07744397]
[1739452526385,0.00673517,95829.0,95828.0,0.16253]
[1739452526791,0.06263,95848.0,95829.0,0.156527]
[1739452527000,0.06263,95848.0,95821.0,0.00104335]
[1739452527001,0.003,95848.0,95821.0,0.00104335]
[1739452527202,0.00573517,95847.0,95830.0,0.156525]
[1739452527631,0.156504,95844.0,95832.0,0.156523]
[1739452527809,0.156506,95843.0,95832.0,0.156523]
[1739452528219,0.00573517,95842.0,95832.0,0.156523]
[1739452528746,0.00573517,95842.0,95828.0,0.008]
[1739452528994,0.00022387,95834.0,95833.0,0.156522]
[1739452529194,0.00022387,95834.0,95833.0,0.23866531]
[1739452529533,0.00022387,95834.0,95833.0,0.237622]
[1739452530141,0.00022387,95834.0,95833.0,0.239622]
[1739452530367,0.00022387,95834.0,95833.0,0.34212565]
[1739452530558,0.00022387,95834.0,95833.0,0.34312565]
[1739452530957,0.00122387,95834.0,95833.0,0.34912565]
[1739452532381,0.00122387,95834.0,95833.0,0.34612565]
[1739452532583,0.00122387,95834.0,95833.0,0.243622]
[1739452532781,0.00122387,95834.0,95833.0,0.0931]
[1739452532979,0.00122387,95834.0,95833.0,0.249622]
[1739452533705,0.00122387,95834.0,95833.0,0.0931]
[1739452536214,0.00703989,95834.0,95833.0,0.0931]
[1739452536407,0.00122387,95834.0,95833.0,0.0931]
[1739452536606,0.00703989,95834.0,95833.0,0.0931]
[1739452536815,0.00122387,95834.0,95833.0,0.0931]
[1739452537055,0.00703989,95834.0,95833.0,0.0931]
[1739452537277,0.00122387,95834.0,95833.0,0.249622]
[1739452537920,0.00122387,95834.0,95833.0,0.0931]
[1739452538128,0.00122387,95834.0,95833.0,0.249622]
[1739452540032,0.00122387,95834.0,95833.0,0.0931]
[1739452540619,0.00703989,95834.0,95833.0,0.0931]
[1739452540906,0.00122387,95834.0,95833.0,0.0931]
[1739452541083,0.00703989,95834.0,95833.0,0.0931]
[1739452541290,0.00122387,95834.0,95833.0,0.0931]
[1739452541577,0.00703989,95834.0,95833.0,0.012]
[1739452541821,0.16355989,95834.0,95833.0,0.012]
[1739452542699,0.00703989,95834.0,95833.0,0.012]
[1739452542902,0.00703989,95834.0,95830.0,0.00784]
[1739452542903,0.00603989,95834.0,95830.0,0.00784]
[1739452543103,0.00603989,95834.0,95833.0,0.004]
[1739452543306,0.00603989,95834.0,95833.0,0.003]
[1739452543510,0.00603989,95834.0,95833.0,0.159522]
[1739452543707,0.00022387,95834.0,95833.0,0.15956537]
[1739452544011,0.00022387,95834.0,95833.0,0.2446653]
[1739452544223,0.00022387,95834.0,95833.0,0.248622]
[1739452544422,0.00022387,95834.0,95833.0,0.244622]
[1739452544790,0.00122387,95834.0,95833.0,0.249622]
[1739452545617,0.00122387,95834.0,95833.0,0.242622]
[1739452545814,0.00122387,95834.0,95833.0,0.248622]
[1739452547064,0.00022387,95834.0,95833.0,0.243622]
[1739452547268,0.00022387,95834.0,95833.0,0.34612565]
[1739452547494,0.00122387,95834.0,95833.0,0.39852565]
[1739452547741,0.00122387,95834.0,95833.0,0.39252565]
[1739452547988,0.00022387,95834.0,95833.0,0.38752565]
[1739452549230,0.00122387,95834.0,95833.0,0.40152565]
[1739452549427,0.00122387,95834.0,95833.0,0.54452565]
[1739452549729,0.00122387,95834.0,95833.0,0.60702235]
[1739452550487,0.00122387,95834.0,95833.0,0.57452565]
[1739452550689,0.00122387,95834.0,95833.0,0.60701601]
[1739452550885,0.00122387,95834.0,95833.0,0.55152565]
[1739452553190,0.00122387,95834.0,95833.0,0.40152565]
[1739452553515,0.00122387,95834.0,95833.0,0.299022]
[1739452554082,0.00122387,95834.0,95833.0,0.39452565]
[1739452554311,0.00022387,95834.0,95833.0,0.39452565]
[1739452554514,0.00122387,95834.0,95833.0,0.40152565]
[1739452555736,0.00122387,95834.0,95833.0,0.38752565]
[1739452555937,0.00022387,95834.0,95833.0,0.38752565]
[1739452556115,0.00022387,95834.0,95833.0,0.40152565]
[1739452556316,0.00022387,95834.0,95833.0,0.39452565]
[1739452556739,0.00022387,95834.0,95833.0,0.40152565]
[1739452559740,0.00022387,95834.0,95833.0,0.55152565]
[1739452565156,0.00022387,95834.0,95833.0,0.54452565]